{"text_format":"1","workbook":"xlsx","n_sheets":14,"sheets":["Privzete vrednosti","Podatki o paketu","Podatki o obravnavi","Vnos podatkov","1_tip dogodka","2_vseb_podrocje","3_razlog obravnave","4_vsebina obravnave","5_tip plačnika","6_spol","7_drzave sveta,ozemlja","Šifrant občine regije NIJZ-2023","8_podlaga zavarovanja dodKode","9_vrste listin"],"not_rendered":{"charts":0,"images":0,"macros":1,"external_links":2,"defined_names":47,"comments":0,"pivot_tables":0},"unopened":[],"bounds":{"document_bytes":16777216,"sheet_cells":100000,"rows_first":2000,"rows_last":500,"rows_between":2000,"halvings":0,"cell_chars":16384,"cell_head_chars":4096},"cells_cut":0,"cells_raw":0,"read":"whole","date_system":"1900"}

{"sheet":"Privzete vrednosti","index":0,"n_rows":12,"n_cols":2,"rows_kept":12,"cut":false,"hidden":false,"merged":[]}
["RIZDDZ ŠTEVILKA IZVAJALCA"]
["ŠIFRA LOKACIJE","000"]
["VZD"]
["RAZLOG OBRAVNAVE"]
["VSEBINA OBRAVNAVE"]
["TIP PLAČNIKA"]
["DRŽAVA STALNEGA PREBIVALIŠČA","705 - Slovenija"]
["DRŽAVLJANSTVO","705 - Slovenija"]
["PODATKI O NOSILCU STIKA (ZDR. DELAVCU / ZDR. SODELAVCU)"]
["IZDANE LISTINE","99 - Ni listine"]
["PREJETE LISTINE","99 - Ni listine"]
["PODLAGA ZA ZDRAVSTVENO ZAVAROVANJE"]

{"sheet":"Podatki o paketu","index":1,"n_rows":7,"n_cols":2,"rows_kept":7,"cut":false,"hidden":false,"merged":[]}
["DATUM ZAJEMA OD"]
["DATUM ZAJEMA DO"]
["TIP DOGODKA","1 - Obravnava individualnega pacienta"]
["VSEBINSKO PODROČJE","SZBO_SKUP"]
["RIZDDZ ŠTEVILKA IZVAJALCA"]
["ID PAKETA",""]
["ID POP. PAKETA"]

{"sheet":"Podatki o obravnavi","index":2,"n_rows":1,"n_cols":47,"rows_kept":1,"cut":false,"hidden":false,"merged":[]}
["RIZDDZ številka izvajalca","Šifra lokacije","VZD","Razlog obravnave (ZZZS)","Vsebina obravnave (ZZZS)","Tip plačnika","EMŠO","Zdravstvena številka","Spol","Datum rojstva","Država stalnega prebivališča","Občina običajnega prebivališča","Državljanstvo","Podlaga za zdravstveno zavarovanje","Datum stika","Ura prihoda","ID stika","Podatki o nosilcu stika (zdr. delavcu / zdr. sodelavcu)","Diagnoza 1","Diagnoza 2","Diagnoza 3","Diagnoza 4","Diagnoza 5","Zunanji vzrok poškodbe ali zastrupitve 1","Zunanji vzrok poškodbe ali zastrupitve 2","Zunanji vzrok poškodbe ali zastrupitve 3","Kronična bolezen, diagnoza 1","Kronična bolezen, diagnoza 2","Kronična bolezen, diagnoza 3","Kronična bolezen, diagnoza 4","Kronična bolezen, diagnoza 5","VZS 1","VZS 2","VZS 3","VZS 4","VZS 5","Izdane listine 1","Izdane listine 2","Izdane listine 3","Izdane listine 4","Izdane listine 5","Izdane listine 6","Izdane listine 7","Izdane listine 8","Izdane listine 9","Izdane listine 10","Prejete listine"]

{"sheet":"Vnos podatkov","index":3,"n_rows":56,"n_cols":6,"rows_kept":56,"cut":false,"hidden":false,"merged":[[8,0,8,5],[1,0,1,5],[40,1,44,1],[40,2,44,2],[40,3,44,3],[40,4,44,4],[40,5,44,5],[32,1,34,1],[32,2,34,2],[35,3,39,3],[35,4,39,4],[35,5,39,5],[35,1,39,1],[35,2,39,2],[27,1,31,1],[27,2,31,2],[45,3,54,3],[45,2,54,2],[45,1,54,1],[45,4,54,4],[45,5,54,5],[27,3,31,3],[27,4,31,4],[27,5,31,5],[32,3,34,3],[32,4,34,4],[32,5,34,5]]}
["Podatek","obvezen (da/ne, pogojno)","Pogoj, če je podatek pogojno obvezen","Navodilo za izpolnitev","Format","Šifrant"]
["PODATKI O PAKETU"]
["ID Paketa","da","/","Številka ID paketa je sestavljena iz 5 mestne RIZDDZ oznake izvajalca  (izvajalec UKC Ljubljana poroča po nadrejeni ravni (06001), vsi ostali izvajalci po osnovni ravni) in 7 mestne zaporedne številke dogodka, ki sledi. ","CHAR (12)","/"]
["Datum zajema od","da","/","Zapiše se datum prvega dne v mesecu za katerega se pošiljajo podatki.","DATE","/"]
["Datum zajema do","da","/","Zapiše se datum zadnjega dne v mesecu za katerega se podatki pošiljajo.","DATE","/"]
["Število zapisov","da","/"," Zapiše se število preštetih zapisov (med 1 in 999.999). ","NUM (6)","/"]
["Tip dogodka","da","/","Vpiše se vrednost iz šifranta. Pri poročanju podatkov po skupni shemi (SZBO_SKUP) se poroča vrednost 1 – obravnava individualanega pacienta.","NUM (1)","šifrant 1 Tip dogodka"]
["Vsebinsko področje","da","/","Vpiše se vrednost iz šifranta. V primeru beleženja podatkov po skupni shemi se zabeleži SZBO_SKUP.","CHAR (10)","šifrant 2 Vsebinsko področje"]
["PODATKI O OBRAVNAVI"]
["RIZZDZ številka izvajalca","da","/","RIZZDZ številka izvajalca","CHAR (5)","šifrant RIZZDZ"]
["Šifra lokacije","da","/","Enolična identifikacijska številka lokacije izvajalca v RIZDDZ","CHAR (3)","šifrant RIZZDZ"]
["VZD","da","/","Vrsta zdravstvene dejavnosti – je oznaka vrste in podvrste zdravstvene dejavnosti, v kateri je potekala obravnava pacienta.","CHAR (6)","šifrant VZD"]
["Razlog obravnave","da","/","Izberite vrednost iz šifranta","NUM (2)","šifrant 3 razlog obravnave"]
["Vsebina obravnave","da","/","Izberite vrednost iz šifranta","NUM (2)","šifrant 4 Vsebina obravnave"]
["Tip plačnika","da","/","Izberite vrednost iz šifranta","NUM (2)","šifrant 5 Tip plačnika"]
["EMŠO","pogojno ","Podatek se ne izpolni pri storitvah (VZS), ki so navedene v Prilogi 4 označene z  eno *.","Vpiše se EMŠO številka pacienta. Če tega podatka ni, se vpiše nadomestni EMŠO. Navodila za vpis nadomestne identifikacijske številke: Kot nadomestna identifikacijska številka pacienta v zunajbolnišnični obravnavi se vpisuje 13-mestna oznaka v formatu DDMMLLLRSPPII, kjer predstavlja: 1 DDMMLLL – dan, mesec in leto rojstva pacienta; 2 R – oznaka regije običajnega bivališča (oznake A, B, C, D, … L, T) iz šifranta Občina - regija  3 S – spol (1-M, 2-Ž, 3-nedoločljiv, 9-neznano); 4 PP – prvi dve črki priimka; 5 II – prvi dve črki imena. ","CHAR (13)","/"]
["Zdravstvena številka","pogojno","Podatek je obvezen ko je izpolnjen podatek Tip plačnika enako 1. Podatek se ne izpolni pri storitvah (VZS), ki so navedene v Prilogi 4 označene z  eno *","V polje se vpiše 9-mestna ZZZS številka pacienta. Če pacient te številke nima (novorojenčki, tujci, osebe brez zdravstvenega zavarovanja), se polje zapolni z ničlami.","CHAR (9)","/"]
["Spol","pogojno","Podatek je obvezen ko je izpolnjen podatek Tip plačnika enako 1. Podatek se ne izpolni pri storitvah (VZS), ki so navedene v Prilogi 4 označene z  eno *","Izberite vrednost iz šifranta","NUM (1)","šifrant 6 Spol"]
["Datum rojstva","pogojno","Podatek je obvezen ko je izpolnjen podatek Tip plačnika enako 1. Podatek se ne izpolni pri storitvah (VZS), ki so navedene v Prilogi 4 označene z  eno *","Vpiše se leto, mesec in dan rojstva. ","DATE","/"]
["Država stalnega prebivališča","pogojno","Podatek je obvezen ko je izpolnjen podatek Tip plačnika enako 1. Podatek se ne izpolni pri storitvah (VZS), ki so navedene v Prilogi 4 označene z  eno *","Vpiše se tromestna koda države stalnega prebivališča pacienta po šifrantu držav in drugih ozemelj.  Šifrant ima tri mesta z vodilno ničlo. Če podatek o državi ni znan, se vpiše 999 – Nerazvrščeno. Koda države je obvezno levo poravnana.","CHAR (3)","šifrant 7 Države sveta, ozemlja"]
["Občina običajnega prebivališča","pogojno","Podatek je obvezen ko je izpolnjen podatek Tip plačnika enako 1. Podatek se ne izpolni pri storitvah (VZS), ki so navedene v Prilogi 4 označene z  eno *","Zapiše se občina običajnega bivališča pacienta po zadnjem veljavnem šifrantu občine regije NIJZ. Kadar ima pacient prijavljeno začasno prebivališče, se v polje Občina običajnega prebivališča vpiše pacientovo začasno prebivališče; kadar pa ima pacient prijavljeno zgolj stalno prebivališče, se polje Občina običajnega prebivališča vpiše pacientovo stalno prebivališče.  Pri tujcih, ki imajo običajno prebivališče v Sloveniji se polje izpolni v skladu z navodili. Pri pacientih, ki nimajo prijavljenega običajnega bivališča v Sloveniji (tujci in slovenski državljani, ki žive v tujini), se polje izpolni z 000. ","CHAR (3)","Šifrant občine regije NIJZ-2015"]
["Državljanstvo","pogojno","Podatek je obvezen ko je izpolnjen podatek Tip plačnika enako 1. Podatek se ne izpolni pri storitvah (VZS), ki so navedene v Prilogi 4 označene z  eno *","Vpiše se tromestna koda države po šifrantu držav  in drugih ozemelj. Osnovna šifra ima tri mesta. Za slovensko državljanstvo se izbere koda 705. Če podatek o državljanstvu ni znan, se vpiše 999. ","CHAR (3)","šifrant 7 Države sveta, ozemlja"]
["Podlaga za zdravstveno zavarovanje ","pogojno","Podatek je obvezen ko je izpolnjen podatek Tip plačnika enako 1. Podatek se ne izpolni pri storitvah (VZS), ki so navedene v Prilogi 4 označene z  eno *"," Šifra podlage za zdravstveno zavarovanje se prepiše iz kartice zdravstvenega zavarovanja (šestmestna šifra). Za paciente, pri katerih plačnik ni ZZZS, se v polje vpiše 000000. Za begunce se uporabi koda iz šifranta 032000. Za novorojenčke, ki še nimajo kartice zdravstvenega zavarovanja, se vpiše »podlaga starša« +077 ( da je novorojenček se vidi iz razlike med datumom rojstva in datumom stika (npr. 28 dni)). Za novorojenčke mater, pri katerih plačnik ni ZZZS, se v polje vpiše 000000.  Za novorojenčke begunk se vpiše kodo 032077 (da je novorojenček se vidi iz razlike med datumom rojstva  in datumom stika). ","CHAR (6)"]
["Datum stika","da","/","Vpiše se datum stika","DATE","/"]
["Ura prihoda","ne","podatek ni obvezen","Vpiše se ura začetka stika","TIME (4)","/"]
["ID stika","da","/","ID stika je enolična identifikacija stika. Sestavljen je po naslednjem ključu:  - 1-5 – 5-mestna RIZDDZ številka izvajalca (podatek Oznaka izvajalca; vpis krajših šifer z vodilnimi\nničlami) +\n- 6-8 - 3-mestna RIZDDZ številka lokacije (podatek Šifra lokacije) vpis krajših šifer z vodilnimi\nničlami) +\n- 9–40 – 32-mestna številka, ki je sestavlja ID pacienta + ID Obravnave oz. karkoli, le da posamezni izvajalec zagotovi enolično vrednost teh 32 znakov v vsakem poročanem zapisu","CHAR (40)","/"]
["Podatki o nosilcu stika","da","/","Zapiše se  številka RIZDDZ nosilca stika. ","CHAR (7)","/"]
["Diagnoza 1","da","Zabeleži se vsaj eden od petih podatkov. Podatek ni obvezen pri vrstah zdravstvenih storitev navedenih v Prilogi 4 ter pri vsehVZD 512 Psihologija in  VZD 327 061 Razvojna ambulanta z vključenim centrom za zgodnjo obravnavo.  ","Vpisujejo  se zgolj tiste kode bolezni in stanj, ki jih ob enem stiku ugotovi oz. obravnava nosilec stika. Ne vpisujejo se druga prisotna stanja, ki ob stiku niso bila obravnavana. Vpiše se lahko do 5 kod diagnoz. Diagnoze se vpisujejo brez pik. Ovrednotenje obravnavanih diagnoz po pomembnosti v okviru enega stika pri njihovem zapisu ni potrebno prav tako ni pomemben vrstni red zapisa obravnavanih diagnoz. V kolikor je pri podatku Diagnoza vpisana koda diagnoze z zvezdico, potem mora biti nujno kot ena izmed petih diagnoz vpisana tudi koda diagnoze s križcem. ","CHAR (5)","MKB-10-AM (verzija 11)"]
["Diagnoza 2"]
["Diagnoza 3"]
["Diagnoza 4"]
["Diagnoza 5"]
["Zunanji vzrok poškodbe ali zastrupitve 1","pogojno","Možno je vpisati do 3 kode zunanjega vzroka. Podatek ni obvezen pri vrstah zdravstvenih storitev navedenih v Prilogi 4 ter pri vseh VZD 512 Psihologija in in  VZD 327 061 Razvojna ambulanta z vključenim centrom za zgodnjo obravnavo.","V primeru poškodbe/zastrupitve,  vpisane pri podatku Diagnoza (S00.0-T98.3), je obvezno vpisati kodo zunanjega vzroka (Zunanji vzrok poškodbe ali zatrupitve), ki je opredeljena s štiri/petmestnimi šiframi iz MKB-10-AM (verzija 11). Diagnoze se vpisujejo brez pik. ","CHAR (5)","MKB-10-AM (verzija 11)"]
["Zunanji vzrok poškodbe ali zastrupitve 2"]
["Zunanji vzrok poškodbe ali zastrupitve 3"]
["Kronicna bolezen, diagnoza 1","pogojno","Podatek Kronična bolezen, diagnoza se izpolni pri vsakem stiku, ko je bil pacient obravnavan zaradi kronične bolezni.  Dodatno pojasnilo: Podatek ni obvezen pri vrstah zdravstvenih storitev, ki so navedene v Prilogi 4 ter pri vseh VZD 512 Psihologija in  VZD 327 061 Razvojna ambulanta z vključenim centrom za zgodnjo obravnavo. ","Nosilec stika glede na informacije, ki so mu na voljo, opredeli, ali je posamezno stanje, vpisano pri spremenljivki Diagnoza, kronično ali ne. Vpiše se samo tista diagnoza kronične bolezni, zaradi katere je bil pacient obravnavan v okviru stika in je vpisana v polju Diagnoza (1 do 5). Diagnoze se vpisujejo brez pik. V primeru, da je v podatku Diagnoza vpisana kronična bolezen je potrebno enako diagnozo vnesti tudi pri podatku Kronična bolezen, diagnoza. ","CHAR (5)","MKB-10-AM (verzija 11)"]
["Kronicna bolezen, diagnoza 2"]
["Kronicna bolezen, diagnoza 3"]
["Kronicna bolezen, diagnoza 4"]
["Kronicna bolezen, diagnoza 5"]
["VZS1","da","Zabeleži se vsaj en od petih podatov.","Vpiše se šifra vrste zdravstvene storitve, opravljene v okviru  nosilca stika. V okviru nosilca stika se vpisujejo samo tiste šifre vrst zdravstvenih storitev, ki so bile opravljene v času enega stika. Možno je vpisati do 5 storitev. ","CHAR (5)","Šifrant Vrste zdravstvenih storitev (VZS)"]
["VZS2"]
["VZS3"]
["VZS4"]
["VZS5"]
["IzdaneListine1","da","Zabeleži se vsaj en od desetih podatkov. "," Zabeleži se šifra iz šifranta Vrste listin. Zabeleži se vsaj eden izmed 10 podatkov. Šifrant Vrste listin je v osnovi šifrant ZZZS Vrste listin OZZ, ki so mu dodane NIJZ  vrednosti od številke 50 do 58. Pri podatku Izdane listine niso mogoče naslednje vrednosti: 3, 4, 5, 9, (te niso možne iz šifranta ZZZS), 55, 56, 57. Če listine ni, se zabeleži vrednost 99.","NUM (2)","šifrant 9 Vrste listin"]
["IzdaneListine2"]
["IzdaneListine3"]
["IzdaneListine4"]
["IzdaneListine5"]
["IzdaneListine6"]
["IzdaneListine7"]
["IzdaneListine8"]
["IzdaneListine9"]
["IzdaneListine10"]
["PrejeteListine","da","/","Zabeleži se šifra iz šifranta Vrste listin.  Šifrant Vrste listin je v osnovi šifrant ZZZS Vrste listin OZZ, ki so mu na NIJZ bile dodane vrednosti od številke 50 do 58.  Pri podatku Prejete listine niso mogoče naslednje vrednosti: 3 - 10 (te šifre niso možne iz šifranta ZZZS) in 50 – 53, 56 in 57. Če listine ni, se zabeleži vrednost 99.","NUM (2)","šifrant 9 Vrste listin"]

{"sheet":"1_tip dogodka","index":4,"n_rows":4,"n_cols":3,"rows_kept":4,"cut":false,"hidden":false,"merged":[]}
["šifra","naziv","šifra - naziv"]
[1,"Obravnava individualnega pacienta",{"$f":" A2 & \" - \" & B2","v":"1 - Obravnava individualnega pacienta"}]
[2,"Interventna prijava za PNB po zakonu (skupine 1, 2, 3)","2 - Interventna prijava za PNB po zakonu (skupine 1, 2, 3)"]
[4,"Obravnava skupine","4 - Obravnava skupine"]

{"sheet":"2_vseb_podrocje","index":5,"n_rows":14,"n_cols":3,"rows_kept":14,"cut":false,"hidden":false,"merged":[]}
["šifra","naziv","šifra - naziv"]
["SZBO_POZA","Poškodbe, Zastrupitve",{"$f":" A2 & \" - \" & B2","v":"SZBO_POZA - Poškodbe, Zastrupitve"}]
["SZBO_NOST","Nosečnost",{"$f":" A3 & \" - \" & B3","v":"SZBO_NOST - Nosečnost"}]
["SZBO_OTML","Preventivno zdravstveno varstvo otrok in mladostnikov","SZBO_OTML - Preventivno zdravstveno varstvo otrok in mladostnikov"]
["SZBO_FTSM","Fetalne smrti","SZBO_FTSM - Fetalne smrti"]
["SZBO_STER","Sterilizacije","SZBO_STER - Sterilizacije"]
["SZBO_PNBL","Prijava nalezljive bolezni","SZBO_PNBL - Prijava nalezljive bolezni"]
["SZBO_SPO","Prijava spolno prenosljivih okužbe","SZBO_SPO - Prijava spolno prenosljivih okužbe"]
["SZBO_HIV","Prijava aidsa/okužbe s HIV","SZBO_HIV - Prijava aidsa/okužbe s HIV"]
["SZBO_PZVO","Preventivno zdravstveno varstvo odraslih","SZBO_PZVO - Preventivno zdravstveno varstvo odraslih"]
["SZBO_PATR","Patronažno varstvo","SZBO_PATR - Patronažno varstvo"]
["SZBO_VZSK","Vzgoja za zdravje skupin","SZBO_VZSK - Vzgoja za zdravje skupin"]
["SZBO_ZVCT","Zdravstvenovzgojni centri/centri za krepitev zdravja","SZBO_ZVCT - Zdravstvenovzgojni centri/centri za krepitev zdravja"]
["SZBO_SKUP","Splošni podatki o zunajbolnišnični obravnavi ","SZBO_SKUP - Splošni podatki o zunajbolnišnični obravnavi "]

{"sheet":"3_razlog obravnave","index":6,"n_rows":6,"n_cols":3,"rows_kept":6,"cut":false,"hidden":false,"merged":[]}
["šifra","naziv","šifra - naziv"]
[1,"Bolezen (vključuje tudi preventivo)",{"$f":" A2 & \" - \" & B2","v":"1 - Bolezen (vključuje tudi preventivo)"}]
[2,"Poškodba izven dela",{"$f":" A3 & \" - \" & B3","v":"2 - Poškodba izven dela"}]
[3,"Poklicna bolezen",{"$f":" A4 & \" - \" & B4","v":"3 - Poklicna bolezen"}]
[4,"Poškodba pri delu",{"$f":" A5 & \" - \" & B5","v":"4 - Poškodba pri delu"}]
[5,"Poškodba po tretji osebi izven dela",{"$f":" A6 & \" - \" & B6","v":"5 - Poškodba po tretji osebi izven dela"}]

{"sheet":"4_vsebina obravnave","index":7,"n_rows":12,"n_cols":3,"rows_kept":12,"cut":false,"hidden":false,"merged":[]}
["šifra","naziv","šifra - naziv"]
[1,"Diagnoza (100% OZZ za zdravljenje in rehabilitacijo iz 23. člena ZZVZZ)",{"$f":" A2 & \" - \" & B2","v":"1 - Diagnoza (100% OZZ za zdravljenje in rehabilitacijo iz 23. člena ZZVZZ)"}]
[2,"Nujna medicinska pomoč (100% OZZ)","2 - Nujna medicinska pomoč (100% OZZ)"]
[3,"Nujno zdravljenje in neodložljive zdravstvene storitve (23. in 25. člen ZZVZZ)","3 - Nujno zdravljenje in neodložljive zdravstvene storitve (23. in 25. člen ZZVZZ)"]
[4,"Nosečnost, porod, kontracepcija (100% OZZ)","4 - Nosečnost, porod, kontracepcija (100% OZZ)"]
[5,"Dajalci tkiv (100% OZZ)","5 - Dajalci tkiv (100% OZZ)"]
[6,"Obvezno cepljenje (100% OZZ)","6 - Obvezno cepljenje (100% OZZ)"]
[7,"Nega na domu in zdravljenje na domu (100% OZZ)","7 - Nega na domu in zdravljenje na domu (100% OZZ)"]
[8,"Patronažni obisk (100% OZZ)","8 - Patronažni obisk (100% OZZ)"]
[9,"Preventiva (100% OZZ)","9 - Preventiva (100% OZZ)"]
[10,"Paliativna oskrba (Sklep o določitvi odstotka vrednosti zdrav. storitev, ki se zagotavljajo v OZZ)","10 - Paliativna oskrba (Sklep o določitvi odstotka vrednosti zdrav. storitev, ki se zagotavljajo v OZZ)"]
[0,"Drugo (Sklep o določitvi odstotka vrednosti zdravstvenih storitev, ki se zagotavljajo v OZZ)","0 - Drugo (Sklep o določitvi odstotka vrednosti zdravstvenih storitev, ki se zagotavljajo v OZZ)"]

{"sheet":"5_tip plačnika","index":8,"n_rows":9,"n_cols":3,"rows_kept":9,"cut":false,"hidden":false,"merged":[]}
["šifra","naziv","šifra - naziv"]
[1,"Obvezno zdravstveno zavarovanje (OZZ)",{"$f":" A2 & \" - \" & B2","v":"1 - Obvezno zdravstveno zavarovanje (OZZ)"}]
[2,"Samoplačnik","2 - Samoplačnik"]
[3,"Prostovoljno zavarovanje","3 - Prostovoljno zavarovanje"]
[4,"konvencija (EUKZZ, Medicare ali MedZZ)","4 - konvencija (EUKZZ, Medicare ali MedZZ)"]
[5,"Proračun (države, regije, občine)","5 - Proračun (države, regije, občine)"]
[6,"Neprofitne  institucije (nevladne organizacije)","6 - Neprofitne  institucije (nevladne organizacije)"]
[7,"Podjetja, korporacije","7 - Podjetja, korporacije"]
[9,"Drugo","9 - Drugo"]

{"sheet":"6_spol","index":9,"n_rows":5,"n_cols":3,"rows_kept":5,"cut":false,"hidden":false,"merged":[]}
["šifra","naziv","šifra - naziv"]
[1,"Moški",{"$f":" A2 & \" - \" & B2","v":"1 - Moški"}]
[2,"Ženski","2 - Ženski"]
[3,"Nedoločljiv","3 - Nedoločljiv"]
[9,"Neznano","9 - Neznano"]

{"sheet":"7_drzave sveta,ozemlja","index":10,"n_rows":252,"n_cols":11,"rows_kept":252,"cut":false,"hidden":false,"merged":[]}
["šifra","naziv","šifra - naziv","ang. Naziv","raven"]
["004","Afganistan",{"$f":" A2 & \" - \" & B2","v":"004 - Afganistan"},"Afghanistan",1]
["008","Albanija",{"$f":" A3 & \" - \" & B3","v":"008 - Albanija"},"Albania",1]
["010","Antarktika","010 - Antarktika","Antarctica",1]
["012","Alžirija","012 - Alžirija","Algeria",1]
["016","Ameriška Samoa","016 - Ameriška Samoa","American Samoa",1]
["020","Andora","020 - Andora","Andorra",1]
["024","Angola","024 - Angola","Angola",1]
["028","Antigva in Barbuda","028 - Antigva in Barbuda","Antigua and Barbuda",1]
["031","Azerbajdžan","031 - Azerbajdžan","Azerbaijan",1]
["032","Argentina","032 - Argentina","Argentina",1]
["036","Avstralija","036 - Avstralija","Australia",1]
["040","Avstrija","040 - Avstrija","Austria",1]
["044","Bahami","044 - Bahami","Bahamas (the)",1]
["048","Bahrajn","048 - Bahrajn","Bahrain",1]
["050","Bangladeš","050 - Bangladeš","Bangladesh",1]
["051","Armenija","051 - Armenija","Armenia",1]
["052","Barbados","052 - Barbados","Barbados",1]
["056","Belgija","056 - Belgija","Belgium",1]
["060","Bermudi","060 - Bermudi","Bermuda",1]
["064","Butan","064 - Butan","Bhutan",1]
["068","Bolivija, Večnacionalna država","068 - Bolivija, Večnacionalna država","Bolivia (Plurinational State of)",1]
["070","Bosna in Hercegovina","070 - Bosna in Hercegovina","Bosnia and Herzegovina",1]
["072","Bocvana","072 - Bocvana","Botswana",1]
["074","Bouvetov otok","074 - Bouvetov otok","Bouvet Island",1]
["076","Brazilija","076 - Brazilija","Brazil",1]
["084","Belize","084 - Belize","Belize",1]
["086","Britansko ozemlje v Indijskem oceanu","086 - Britansko ozemlje v Indijskem oceanu","British Indian Ocean Territory (the)",1]
["090","Salomonovi otoki","090 - Salomonovi otoki","Solomon Islands",1]
["092","Britanski Deviški otoki\n","092 - Britanski Deviški otoki\n","Virgin Islands (British)",1]
["096","Brunej, Država","096 - Brunej, Država","Brunei Darussalam",1]
[100,"Bolgarija","100 - Bolgarija","Bulgaria",1]
[104,"Mjanmar","104 - Mjanmar","Myanmar",1]
[108,"Burundi","108 - Burundi","Burundi",1]
[112,"Belorusija","112 - Belorusija","Belarus",1]
[116,"Kambodža","116 - Kambodža","Cambodia",1]
[120,"Kamerun","120 - Kamerun","Cameroon",1]
[124,"Kanada","124 - Kanada","Canada",1]
[132,"Zelenortski otoki","132 - Zelenortski otoki","Cabo Verde",1]
[136,"Kajmanji otoki","136 - Kajmanji otoki","Cayman Islands (the)",1]
[140,"Srednjeafriška republika","140 - Srednjeafriška republika","Central African Republic (the)",1]
[144,"Šrilanka","144 - Šrilanka","Sri Lanka",1]
[148,"Čad","148 - Čad","Chad",1]
[152,"Čile","152 - Čile","Chile",1]
[156,"Kitajska","156 - Kitajska","China",1]
[158,"Tajvan, Kitajska provinca","158 - Tajvan, Kitajska provinca","Taiwan (Province of China)",1]
[162,"Božični otok","162 - Božični otok","Christmas Island",1]
[166,"Kokosovi (Keelingovi) otoki\n","166 - Kokosovi (Keelingovi) otoki\n","Cocos (Keeling) Islands (the)",1]
[170,"Kolumbija","170 - Kolumbija","Colombia",1]
[174,"Komori","174 - Komori","Comoros (the)",1]
[175,"Mayotte","175 - Mayotte","Mayotte",1]
[178,"Kongo","178 - Kongo","Congo (the)",1]
[180,"Kongo, Demokratična republika","180 - Kongo, Demokratična republika","Congo (the Democratic Republic of the)",1]
[184,"Cookovi otoki","184 - Cookovi otoki","Cook Islands (the)",1]
[188,"Kostarika","188 - Kostarika","Costa Rica",1]
[191,"Hrvaška","191 - Hrvaška","Croatia",1]
[192,"Kuba","192 - Kuba","Cuba",1]
[196,"Ciper","196 - Ciper","Cyprus",1]
[203,"Češka","203 - Češka","Czechia",1]
[204,"Benin","204 - Benin","Benin",1]
[208,"Danska","208 - Danska","Denmark",1]
[212,"Dominika","212 - Dominika","Dominica",1]
[214,"Dominikanska republika","214 - Dominikanska republika","Dominican Republic (the)",1]
[218,"Ekvador","218 - Ekvador","Ecuador",1]
[222,"Salvador","222 - Salvador","El Salvador",1]
[226,"Ekvatorialna Gvineja","226 - Ekvatorialna Gvineja","Equatorial Guinea",1]
[231,"Etiopija",{"$f":" A67 & \" - \" & B67","v":"231 - Etiopija"},"Ethiopia",1]
[232,"Eritreja","232 - Eritreja","Eritrea",1]
[233,"Estonija","233 - Estonija","Estonia",1]
[234,"Ferski otoki","234 - Ferski otoki","Faroe Islands (the)",1]
[238,"Falklandski otoki (Malvini)","238 - Falklandski otoki (Malvini)","Falkland Islands (the) [Malvinas]",1]
[239,"Južna Georgija in Južni Sandwichevi otoki","239 - Južna Georgija in Južni Sandwichevi otoki","South Georgia and the South Sandwich Islands",1]
[242,"Fidži","242 - Fidži","Fiji",1]
[246,"Finska","246 - Finska","Finland",1]
[248,"Alandski otoki","248 - Alandski otoki","Aland Islands",1]
[250,"Francija","250 - Francija","France",1]
[254,"Francoska Gvajana","254 - Francoska Gvajana","French Guiana",1]
[258,"Francoska Polinezija","258 - Francoska Polinezija","French Polynesia",1]
[260,"Francoska južna ozemlja","260 - Francoska južna ozemlja","French Southern Territories (the)",1]
[262,"Džibuti","262 - Džibuti","Djibouti",1]
[266,"Gabon","266 - Gabon","Gabon",1]
[268,"Gruzija","268 - Gruzija","Georgia",1]
[270,"Gambija","270 - Gambija","Gambia (the)",1]
[275,"Palestina, Država","275 - Palestina, Država","Palestine, State of",1]
[276,"Nemčija","276 - Nemčija","Germany",1]
[288,"Gana","288 - Gana","Ghana",1]
[292,"Gibraltar","292 - Gibraltar","Gibraltar",1]
[296,"Kiribati","296 - Kiribati","Kiribati",1]
[300,"Grčija","300 - Grčija","Greece",1]
[304,"Grenlandija","304 - Grenlandija","Greenland",1]
[308,"Grenada","308 - Grenada","Grenada",1]
[312,"Gvadelup","312 - Gvadelup","Guadeloupe",1]
[316,"Gvam","316 - Gvam","Guam",1]
[320,"Gvatemala","320 - Gvatemala","Guatemala",1]
[324,"Gvineja","324 - Gvineja","Guinea",1]
[328,"Gvajana","328 - Gvajana","Guyana",1]
[332,"Haiti","332 - Haiti","Haiti",1]
[334,"Heardov otok in McDonaldovi otoki","334 - Heardov otok in McDonaldovi otoki","Heard Island and McDonald Islands",1]
[336,"Sveti sedež\n","336 - Sveti sedež\n","Holy See (the)",1]
[340,"Honduras","340 - Honduras","Honduras",1]
[344,"Hongkong","344 - Hongkong","Hong Kong",1]
[348,"Madžarska","348 - Madžarska","Hungary",1]
[352,"Islandija","352 - Islandija","Iceland",1]
[356,"Indija","356 - Indija","India",1]
[360,"Indonezija","360 - Indonezija","Indonesia",1]
[364,"Iran, Islamska republika","364 - Iran, Islamska republika","Iran (Islamic Republic of)",1]
[368,"Irak","368 - Irak","Iraq",1]
[372,"Irska","372 - Irska","Ireland",1]
[376,"Izrael","376 - Izrael","Israel",1]
[380,"Italija","380 - Italija","Italy",1]
[384,"Slonokoščena obala","384 - Slonokoščena obala","Côte d'Ivoire",1]
[388,"Jamajka","388 - Jamajka","Jamaica",1]
[392,"Japonska","392 - Japonska","Japan",1]
[398,"Kazahstan","398 - Kazahstan","Kazakhstan",1]
[400,"Jordanija","400 - Jordanija","Jordan",1]
[404,"Kenija","404 - Kenija","Kenya",1]
[408,"Koreja, Demokratična ljudska republika","408 - Koreja, Demokratična ljudska republika","Korea (the Democratic People's Republic of)",1]
[410,"Koreja, Republika","410 - Koreja, Republika","Korea (the Republic of)",1]
[414,"Kuvajt","414 - Kuvajt","Kuwait",1]
[417,"Kirgizistan","417 - Kirgizistan","Kyrgyzstan",1]
[418,"Laoška ljudska demokratična republika","418 - Laoška ljudska demokratična republika","Lao People's Democratic Republic (the)",1]
[422,"Libanon","422 - Libanon","Lebanon",1]
[426,"Lesoto","426 - Lesoto","Lesotho",1]
[428,"Latvija","428 - Latvija","Latvia",1]
[430,"Liberija","430 - Liberija","Liberia",1]
[434,"Libija","434 - Libija","Libya",1]
[438,"Lihtenštajn","438 - Lihtenštajn","Liechtenstein",1]
[440,"Litva","440 - Litva","Lithuania",1]
[442,"Luksemburg","442 - Luksemburg","Luxembourg",1]
[446,"Makav\n","446 - Makav\n","Macao",1]
[450,"Madagaskar",{"$f":" A131 & \" - \" & B131","v":"450 - Madagaskar"},"Madagascar",1]
[454,"Malavi","454 - Malavi","Malawi",1]
[458,"Malezija","458 - Malezija","Malaysia",1]
[462,"Maldivi","462 - Maldivi","Maldives",1]
[466,"Mali","466 - Mali","Mali",1]
[470,"Malta","470 - Malta","Malta",1]
[474,"Martinik","474 - Martinik","Martinique",1]
[478,"Mavretanija","478 - Mavretanija","Mauritania",1]
[480,"Mavricij","480 - Mavricij","Mauritius",1]
[484,"Mehika","484 - Mehika","Mexico",1]
[492,"Monako","492 - Monako","Monaco",1]
[496,"Mongolija","496 - Mongolija","Mongolia",1]
[498,"Moldavija, Republika","498 - Moldavija, Republika","Moldova (the Republic of)",1]
[499,"Črna gora","499 - Črna gora","Montenegro",1]
[500,"Monserat","500 - Monserat","Montserrat",1]
[504,"Maroko","504 - Maroko","Morocco",1]
[508,"Mozambik","508 - Mozambik","Mozambique",1]
[512,"Oman","512 - Oman","Oman",1]
[516,"Namibija","516 - Namibija","Namibia",1]
[520,"Nauru","520 - Nauru","Nauru",1]
[524,"Nepal","524 - Nepal","Nepal",1]
[528,"Nizozemska","528 - Nizozemska","Netherlands (the)",1]
[531,"Curaçao","531 - Curaçao","Curaçao",1]
[533,"Aruba","533 - Aruba","Aruba",1]
[534,"Nizozemski Sveti Martin\n","534 - Nizozemski Sveti Martin\n","Sint Maarten (Dutch part)",1]
[535,"Bonaire, Sveti Evstahij in Saba","535 - Bonaire, Sveti Evstahij in Saba","Bonaire, Sint Eustatius and Saba",1]
[540,"Nova Kaledonija","540 - Nova Kaledonija","New Caledonia",1]
[548,"Vanuatu","548 - Vanuatu","Vanuatu",1]
[554,"Nova Zelandija","554 - Nova Zelandija","New Zealand",1]
[558,"Nikaragva","558 - Nikaragva","Nicaragua",1]
[562,"Niger","562 - Niger","Niger (the)",1]
[566,"Nigerija","566 - Nigerija","Nigeria",1]
[570,"Niue","570 - Niue","Niue",1]
[574,"Otok Norfolk","574 - Otok Norfolk","Norfolk Island",1]
[578,"Norveška","578 - Norveška","Norway",1]
[580,"Severni Marijanski otoki","580 - Severni Marijanski otoki","Northern Mariana Islands (the)",1]
[581,"Ameriški manjši zunanji otoki\n","581 - Ameriški manjši zunanji otoki\n","United States Minor Outlying Islands (the)",1]
[583,"Združene države Mikronezije","583 - Združene države Mikronezije","Micronesia (Federated States of)",1]
[584,"Marshallovi otoki","584 - Marshallovi otoki","Marshall Islands (the)",1]
[585,"Palav","585 - Palav","Palau",1]
[586,"Pakistan","586 - Pakistan","Pakistan",1]
[591,"Panama","591 - Panama","Panama",1]
[598,"Papuanska Nova Gvineja","598 - Papuanska Nova Gvineja","Papua New Guinea",1]
[600,"Paragvaj","600 - Paragvaj","Paraguay",1]
[604,"Peru","604 - Peru","Peru",1]
[608,"Filipini","608 - Filipini","Philippines (the)",1]
[612,"Pitcairn","612 - Pitcairn","Pitcairn",1]
[616,"Poljska","616 - Poljska","Poland",1]
[620,"Portugalska","620 - Portugalska","Portugal",1]
[624,"Gvineja Bissau","624 - Gvineja Bissau","Guinea-Bissau",1]
[626,"Vzhodni Timor","626 - Vzhodni Timor","Timor-Leste",1]
[630,"Portoriko","630 - Portoriko","Puerto Rico",1]
[634,"Katar","634 - Katar","Qatar",1]
[638,"Reunion","638 - Reunion","Réunion",1]
[642,"Romunija","642 - Romunija","Romania",1]
[643,"Ruska federacija","643 - Ruska federacija","Russian Federation (the)",1]
[646,"Ruanda","646 - Ruanda","Rwanda",1]
[652,"Sveti Bartolomej\n","652 - Sveti Bartolomej\n","Saint Barthélemy",1]
[654,"Sveta Helena, Ascension in Tristan da Cunha","654 - Sveta Helena, Ascension in Tristan da Cunha","Saint Helena, Ascension and Tristan da Cunha",1]
[659,"Sveti Krištof in Nevis","659 - Sveti Krištof in Nevis","Saint Kitts and Nevis",1]
[660,"Angvila","660 - Angvila","Anguilla",1]
[662,"Sveta Lucija","662 - Sveta Lucija","Saint Lucia",1]
[663,"Francoski Sveti Martin\n","663 - Francoski Sveti Martin\n","Saint Martin (French part)",1]
[666,"Sveta Peter in Mihael","666 - Sveta Peter in Mihael","Saint Pierre and Miquelon",1]
[670,"Sveti Vincencij in Grenadine",{"$f":" A195 & \" - \" & B195","v":"670 - Sveti Vincencij in Grenadine"},"Saint Vincent and the Grenadines",1]
[674,"San Marino","674 - San Marino","San Marino",1]
[678,"Sveti Tomaž in Princ","678 - Sveti Tomaž in Princ","Sao Tome and Principe",1]
[682,"Saudova Arabija","682 - Saudova Arabija","Saudi Arabia",1]
[686,"Senegal","686 - Senegal","Senegal",1]
[688,"Srbija","688 - Srbija","Serbia",1]
[690,"Sejšeli","690 - Sejšeli","Seychelles",1]
[694,"Sierra Leone","694 - Sierra Leone","Sierra Leone",1]
[702,"Singapur","702 - Singapur","Singapore",1]
[703,"Slovaška","703 - Slovaška","Slovakia",1]
[704,"Vietnam","704 - Vietnam","Viet Nam",1]
[705,"Slovenija","705 - Slovenija","Slovenia",1]
[706,"Somalija","706 - Somalija","Somalia",1]
[710,"Južna Afrika","710 - Južna Afrika","South Africa",1]
[716,"Zimbabve","716 - Zimbabve","Zimbabwe",1]
[724,"Španija","724 - Španija","Spain",1]
[728,"Južni Sudan","728 - Južni Sudan","South Sudan",1]
[729,"Sudan","729 - Sudan","Sudan (the)",1]
[732,"Zahodna Sahara","732 - Zahodna Sahara","Western Sahara*",1]
[740,"Surinam","740 - Surinam","Suriname",1]
[744,"Svalbard in Jan Mayen","744 - Svalbard in Jan Mayen","Svalbard and Jan Mayen",1]
[748,"Esvatini\n","748 - Esvatini\n","Eswatini\n",1]
[752,"Švedska","752 - Švedska","Sweden",1]
[756,"Švica","756 - Švica","Switzerland",1]
[760,"Sirska arabska republika","760 - Sirska arabska republika","Syrian Arab Republic (the)",1]
[762,"Tadžikistan","762 - Tadžikistan","Tajikistan",1]
[764,"Tajska","764 - Tajska","Thailand",1]
[768,"Togo","768 - Togo","Togo",1]
[772,"Tokelav","772 - Tokelav","Tokelau",1]
[776,"Tonga","776 - Tonga","Tonga",1]
[780,"Trinidad in Tobago","780 - Trinidad in Tobago","Trinidad and Tobago",1]
[784,"Združeni arabski emirati","784 - Združeni arabski emirati","United Arab Emirates (the)",1]
[788,"Tunizija","788 - Tunizija","Tunisia",1]
[792,"Turčija","792 - Turčija","Turkey",1]
[795,"Turkmenistan","795 - Turkmenistan","Turkmenistan",1]
[796,"Otoki Turks in Caicos","796 - Otoki Turks in Caicos","Turks and Caicos Islands (the)",1]
[798,"Tuvalu","798 - Tuvalu","Tuvalu",1]
[800,"Uganda","800 - Uganda","Uganda",1]
[804,"Ukrajina","804 - Ukrajina","Ukraine",1]
[807,"Severna Makedonija","807 - Severna Makedonija","North Macedonia",1,null,null,null,null,null,"NOVO!"]
[818,"Egipt","818 - Egipt","Egypt",1]
[826,"Združeno kraljestvo Velike Britanije in Severne Irske\n","826 - Združeno kraljestvo Velike Britanije in Severne Irske\n","United Kingdom of Great Britain and Northern Ireland (the)",1]
[831,"Guernsey","831 - Guernsey","Guernsey",1]
[832,"Jersey","832 - Jersey","Jersey",1]
[833,"Otok Man","833 - Otok Man","Isle of Man",1]
[834,"Tanzanija, Združena republika","834 - Tanzanija, Združena republika","Tanzania, the United Republic of",1]
[840,"Združene države Amerike\n","840 - Združene države Amerike\n","United States of America (the)",1]
[850,"Ameriški Deviški otoki\n","850 - Ameriški Deviški otoki\n","Virgin Islands (U.S.)",1]
[854,"Burkina Faso","854 - Burkina Faso","Burkina Faso",1]
[858,"Urugvaj","858 - Urugvaj","Uruguay",1]
[860,"Uzbekistan","860 - Uzbekistan","Uzbekistan",1]
[862,"Venezuela, Bolivarska republika","862 - Venezuela, Bolivarska republika","Venezuela (Bolivarian Republic of)",1]
[876,"Wallis in Futuna","876 - Wallis in Futuna","Wallis and Futuna",1]
[882,"Samoa","882 - Samoa","Samoa",1]
[887,"Jemen","887 - Jemen","Yemen",1]
[894,"Zambija","894 - Zambija","Zambia",1]
[901,"Kosovo*","901 - Kosovo*","Kosovo*",1]
["999","NERAZVRŠČENO","999 - NERAZVRŠČENO","NOT CLASSIFIED",1]

{"sheet":"Šifrant občine regije NIJZ-2023","index":11,"n_rows":215,"n_cols":4,"rows_kept":215,"cut":false,"hidden":false,"merged":[]}
["šifra","naziv","šifra - naziv","regija za nadom. ID"]
["000","TUJINA",{"$f":" A2 & \" - \" & B2","v":"000 - TUJINA"},"T"]
["001","AJDOVŠČINA","001 - AJDOVŠČINA","K"]
["002","BELTINCI","002 - BELTINCI","A"]
["003","BLED","003 - BLED","I"]
["004","BOHINJ","004 - BOHINJ","I"]
["005","BOROVNICA","005 - BOROVNICA","H"]
["006","BOVEC","006 - BOVEC","K"]
["007","BRDA","007 - BRDA","K"]
["008","BREZOVICA","008 - BREZOVICA","H"]
["009","BREŽICE","009 - BREŽICE","F"]
["010","TIŠINA","010 - TIŠINA","A"]
["011","CELJE","011 - CELJE","D"]
["012","CERKLJE NA GORENJSKEM","012 - CERKLJE NA GORENJSKEM","I"]
["013","CERKNICA","013 - CERKNICA","J"]
["014","CERKNO","014 - CERKNO","K"]
["015","ČRENŠOVCI","015 - ČRENŠOVCI","A"]
["016","ČRNA NA KOROŠKEM","016 - ČRNA NA KOROŠKEM","C"]
["017","ČRNOMELJ","017 - ČRNOMELJ","G"]
["018","DESTRNIK","018 - DESTRNIK","B"]
["019","DIVAČA","019 - DIVAČA","L"]
["020","DOBREPOLJE","020 - DOBREPOLJE","H"]
["021","DOBROVA-POLHOV GRADEC","021 - DOBROVA-POLHOV GRADEC","H"]
["022","DOL PRI LJUBLJANI","022 - DOL PRI LJUBLJANI","H"]
["023","DOMŽALE","023 - DOMŽALE","H"]
["024","DORNAVA","024 - DORNAVA","B"]
["025","DRAVOGRAD","025 - DRAVOGRAD","C"]
["026","DUPLEK","026 - DUPLEK","B"]
["027","GORENJA VAS-POLJANE","027 - GORENJA VAS-POLJANE","I"]
["028","GORIŠNICA","028 - GORIŠNICA","B"]
["029","GORNJA RADGONA","029 - GORNJA RADGONA","A"]
["030","GORNJI GRAD","030 - GORNJI GRAD","D"]
["031","GORNJI PETROVCI","031 - GORNJI PETROVCI","A"]
["032","GROSUPLJE","032 - GROSUPLJE","H"]
["033","ŠALOVCI","033 - ŠALOVCI","A"]
["034","HRASTNIK","034 - HRASTNIK","E"]
["035","HRPELJE-KOZINA","035 - HRPELJE-KOZINA","L"]
["036","IDRIJA","036 - IDRIJA","K"]
["037","IG","037 - IG","H"]
["038","ILIRSKA BISTRICA","038 - ILIRSKA BISTRICA","J"]
["039","IVANČNA GORICA","039 - IVANČNA GORICA","H"]
["040","IZOLA","040 - IZOLA","L"]
["041","JESENICE","041 - JESENICE","I"]
["042","JURŠINCI","042 - JURŠINCI","B"]
["043","KAMNIK","043 - KAMNIK","H"]
["044","KANAL","044 - KANAL","K"]
["045","KIDRIČEVO","045 - KIDRIČEVO","B"]
["046","KOBARID","046 - KOBARID","K"]
["047","KOBILJE","047 - KOBILJE","A"]
["048","KOČEVJE","048 - KOČEVJE","G"]
["049","KOMEN","049 - KOMEN","L"]
["050","KOPER","050 - KOPER","L"]
["051","KOZJE","051 - KOZJE","D"]
["052","KRANJ","052 - KRANJ","I"]
["053","KRANJSKA GORA","053 - KRANJSKA GORA","I"]
["054","KRŠKO","054 - KRŠKO","F"]
["055","KUNGOTA","055 - KUNGOTA","B"]
["056","KUZMA","056 - KUZMA","A"]
["057","LAŠKO","057 - LAŠKO","D"]
["058","LENART","058 - LENART","B"]
["059","LENDAVA","059 - LENDAVA","A"]
["060","LITIJA","060 - LITIJA","H"]
["061","LJUBLJANA","061 - LJUBLJANA","H"]
["062","LJUBNO","062 - LJUBNO","D"]
["063","LJUTOMER","063 - LJUTOMER","A"]
["064","LOGATEC",{"$f":" A66 & \" - \" & B66","v":"064 - LOGATEC"},"H"]
["065","LOŠKA DOLINA","065 - LOŠKA DOLINA","J"]
["066","LOŠKI POTOK","066 - LOŠKI POTOK","G"]
["067","LUČE","067 - LUČE","D"]
["068","LUKOVICA","068 - LUKOVICA","H"]
["069","MAJŠPERK","069 - MAJŠPERK","B"]
["070","MARIBOR","070 - MARIBOR","B"]
["071","MEDVODE","071 - MEDVODE","H"]
["072","MENGEŠ","072 - MENGEŠ","H"]
["073","METLIKA","073 - METLIKA","G"]
["074","MEŽICA","074 - MEŽICA","C"]
["075","MIREN-KOSTANJEVICA","075 - MIREN-KOSTANJEVICA","K"]
["076","MISLINJA","076 - MISLINJA","C"]
["077","MORAVČE","077 - MORAVČE","H"]
["078","MORAVSKE TOPLICE","078 - MORAVSKE TOPLICE","A"]
["079","MOZIRJE","079 - MOZIRJE","D"]
["080","MURSKA SOBOTA","080 - MURSKA SOBOTA","A"]
["081","MUTA","081 - MUTA","C"]
["082","NAKLO","082 - NAKLO","I"]
["083","NAZARJE","083 - NAZARJE","D"]
["084","NOVA GORICA","084 - NOVA GORICA","K"]
["085","NOVO MESTO","085 - NOVO MESTO","G"]
["086","ODRANCI","086 - ODRANCI","A"]
["087","ORMOŽ","087 - ORMOŽ","B"]
["088","OSILNICA","088 - OSILNICA","G"]
["089","PESNICA","089 - PESNICA","B"]
["090","PIRAN","090 - PIRAN","L"]
["091","PIVKA","091 - PIVKA","J"]
["092","PODČETRTEK","092 - PODČETRTEK","D"]
["093","PODVELKA","093 - PODVELKA","C"]
["094","POSTOJNA","094 - POSTOJNA","J"]
["095","PREDDVOR","095 - PREDDVOR","I"]
["096","PTUJ","096 - PTUJ","B"]
["097","PUCONCI","097 - PUCONCI","A"]
["098","RAČE-FRAM","098 - RAČE-FRAM","B"]
["099","RADEČE","099 - RADEČE","D"]
[100,"RADENCI","100 - RADENCI","A"]
[101,"RADLJE OB DRAVI","101 - RADLJE OB DRAVI","C"]
[102,"RADOVLJICA","102 - RADOVLJICA","I"]
[103,"RAVNE NA KOROŠKEM","103 - RAVNE NA KOROŠKEM","C"]
[104,"RIBNICA","104 - RIBNICA","G"]
[105,"ROGAŠOVCI","105 - ROGAŠOVCI","A"]
[106,"ROGAŠKA SLATINA","106 - ROGAŠKA SLATINA","D"]
[107,"ROGATEC","107 - ROGATEC","D"]
[108,"RUŠE","108 - RUŠE","B"]
[109,"SEMIČ","109 - SEMIČ","G"]
[110,"SEVNICA","110 - SEVNICA","F"]
[111,"SEŽANA","111 - SEŽANA","L"]
[112,"SLOVENJ GRADEC","112 - SLOVENJ GRADEC","C"]
[113,"SLOVENSKA BISTRICA","113 - SLOVENSKA BISTRICA","B"]
[114,"SLOVENSKE KONJICE","114 - SLOVENSKE KONJICE","D"]
[115,"STARŠE","115 - STARŠE","B"]
[116,"SVETI JURIJ","116 - SVETI JURIJ","A"]
[117,"ŠENČUR","117 - ŠENČUR","I"]
[118,"ŠENTILJ","118 - ŠENTILJ","B"]
[119,"ŠENTJERNEJ","119 - ŠENTJERNEJ","G"]
[120,"ŠENTJUR","120 - ŠENTJUR","D"]
[121,"ŠKOCJAN","121 - ŠKOCJAN","G"]
[122,"ŠKOFJA LOKA","122 - ŠKOFJA LOKA","I"]
[123,"ŠKOFLJICA","123 - ŠKOFLJICA","H"]
[124,"ŠMARJE PRI JELŠAH","124 - ŠMARJE PRI JELŠAH","D"]
[125,"ŠMARTNO OB PAKI","125 - ŠMARTNO OB PAKI","D"]
[126,"ŠOŠTANJ","126 - ŠOŠTANJ","D"]
[127,"ŠTORE","127 - ŠTORE","D"]
[128,"TOLMIN",{"$f":" A130 & \" - \" & B130","v":"128 - TOLMIN"},"K"]
[129,"TRBOVLJE","129 - TRBOVLJE","E"]
[130,"TREBNJE","130 - TREBNJE","G"]
[131,"TRŽIČ","131 - TRŽIČ","I"]
[132,"TURNIŠČE","132 - TURNIŠČE","A"]
[133,"VELENJE","133 - VELENJE","D"]
[134,"VELIKE LAŠČE","134 - VELIKE LAŠČE","H"]
[135,"VIDEM","135 - VIDEM","B"]
[136,"VIPAVA","136 - VIPAVA","K"]
[137,"VITANJE","137 - VITANJE","D"]
[138,"VODICE","138 - VODICE","H"]
[139,"VOJNIK","139 - VOJNIK","D"]
[140,"VRHNIKA","140 - VRHNIKA","H"]
[141,"VUZENICA","141 - VUZENICA","C"]
[142,"ZAGORJE OB SAVI","142 - ZAGORJE OB SAVI","E"]
[143,"ZAVRČ","143 - ZAVRČ","B"]
[144,"ZREČE","144 - ZREČE","D"]
[146,"ŽELEZNIKI","146 - ŽELEZNIKI","I"]
[147,"ŽIRI","147 - ŽIRI","I"]
[148,"BENEDIKT","148 - BENEDIKT","B"]
[149,"BISTRICA OB SOTLI","149 - BISTRICA OB SOTLI","D"]
[150,"BLOKE","150 - BLOKE","J"]
[151,"BRASLOVČE","151 - BRASLOVČE","D"]
[152,"CANKOVA","152 - CANKOVA","A"]
[153,"CERKVENJAK","153 - CERKVENJAK","B"]
[154,"DOBJE","154 - DOBJE","D"]
[155,"DOBRNA","155 - DOBRNA","D"]
[156,"DOBROVNIK","156 - DOBROVNIK","A"]
[157,"DOLENJSKE TOPLICE","157 - DOLENJSKE TOPLICE","G"]
[158,"GRAD","158 - GRAD","A"]
[159,"HAJDINA","159 - HAJDINA","B"]
[160,"HOČE-SLIVNICA","160 - HOČE-SLIVNICA","B"]
[161,"HODOŠ","161 - HODOŠ","A"]
[162,"HORJUL","162 - HORJUL","H"]
[163,"JEZERSKO","163 - JEZERSKO","I"]
[164,"KOMENDA","164 - KOMENDA","H"]
[165,"KOSTEL","165 - KOSTEL","G"]
[166,"KRIŽEVCI","166 - KRIŽEVCI","A"]
[167,"LOVRENC NA POHORJU","167 - LOVRENC NA POHORJU","B"]
[168,"MARKOVCI","168 - MARKOVCI","B"]
[169,"MIKLAVŽ NA DRAVSKEM POLJU","169 - MIKLAVŽ NA DRAVSKEM POLJU","B"]
[170,"MIRNA PEČ","170 - MIRNA PEČ","G"]
[171,"OPLOTNICA","171 - OPLOTNICA","B"]
[172,"PODLEHNIK","172 - PODLEHNIK","B"]
[173,"POLZELA","173 - POLZELA","D"]
[174,"PREBOLD","174 - PREBOLD","D"]
[175,"PREVALJE","175 - PREVALJE","C"]
[176,"RAZKRIŽJE","176 - RAZKRIŽJE","A"]
[177,"RIBNICA NA POHORJU","177 - RIBNICA NA POHORJU","C"]
[178,"SELNICA OB DRAVI","178 - SELNICA OB DRAVI","B"]
[179,"SODRAŽICA","179 - SODRAŽICA","G"]
[180,"SOLČAVA","180 - SOLČAVA","D"]
[181,"SVETA ANA","181 - SVETA ANA","B"]
[182,"SVETI ANDRAŽ V SLOV. GORICAH","182 - SVETI ANDRAŽ V SLOV. GORICAH","B"]
[183,"ŠEMPETER-VRTOJBA","183 - ŠEMPETER-VRTOJBA","K"]
[184,"TABOR","184 - TABOR","D"]
[185,"TRNOVSKA VAS","185 - TRNOVSKA VAS","B"]
[186,"TRZIN","186 - TRZIN","H"]
[187,"VELIKA POLANA","187 - VELIKA POLANA","A"]
[188,"VERŽEJ","188 - VERŽEJ","A"]
[189,"VRANSKO","189 - VRANSKO","D"]
[190,"ŽALEC","190 - ŽALEC","D"]
[191,"ŽETALE","191 - ŽETALE","B"]
[192,"ŽIROVNICA","192 - ŽIROVNICA","I"]
[193,"ŽUŽEMBERK",{"$f":" A194 & \" - \" & B194","v":"193 - ŽUŽEMBERK"},"G"]
[194,"ŠMARTNO PRI LITIJI","194 - ŠMARTNO PRI LITIJI","H"]
[195,"APAČE","195 - APAČE","A"]
[196,"CIRKULANE","196 - CIRKULANE","B"]
[197,"KOSTANJEVICA NA KRKI","197 - KOSTANJEVICA NA KRKI","F"]
[198,"MAKOLE","198 - MAKOLE","B"]
[199,"MOKRONOG-TREBELNO","199 - MOKRONOG-TREBELNO","G"]
[200,"POLJČANE","200 - POLJČANE","B"]
[201,"RENČE-VOGRSKO","201 - RENČE-VOGRSKO","K"]
[202,"SREDIŠČE OB DRAVI","202 - SREDIŠČE OB DRAVI","B"]
[203,"STRAŽA","203 - STRAŽA","G"]
[204,"SV. TROJICA V SLOV. GORICAH","204 - SV. TROJICA V SLOV. GORICAH","B"]
[205,"SVETI TOMAŽ","205 - SVETI TOMAŽ","B"]
[206,"ŠMARJEŠKE TOPLICE","206 - ŠMARJEŠKE TOPLICE","G"]
[207,"GORJE","207 - GORJE","I"]
[208,"LOG-DRAGOMER","208 - LOG-DRAGOMER","H"]
[209,"REČICA OB SAVINJI","209 - REČICA OB SAVINJI","D"]
[210,"SVETI JURIJ V SLOV. GORICAH","210 - SVETI JURIJ V SLOV. GORICAH","B"]
[211,"ŠENTRUPERT","211 - ŠENTRUPERT","G"]
[212,"MIRNA","212 - MIRNA","G"]
[213,"ANKARAN","213 - ANKARAN","L"]
["999","NEZNANA OBČINA","999 - NEZNANA OBČINA","X"]

{"sheet":"8_podlaga zavarovanja dodKode","index":12,"n_rows":114,"n_cols":10,"rows_kept":114,"cut":false,"hidden":false,"merged":[[1,3,10,3],[16,4,16,7],[16,8,16,9]]}
["šifra","naziv"]
["000000","plačnik ni ZZZS ",null,"podlaga zavarovanja DODATNE KODE"]
[]
[]
[]
[]
[]
[]
[]
[]
[]
[]
["Pozor! Šifra je 6 mestna: Prva tri mesta šifre predstavljajo šifre iz osnovnega šifranta Podlage zavarovanja za nosilca zavarovanja, druga tri mesta pa šifre iz Podlage zavarovanja za  družinskega člana. "]
[]
[]
["Osnovni šifrant ZZZS 25: Podlage zavarovanja"]
[null,null,null,null,"Vrste zavarovanj",null,null,null,"On-line"]
["Šifra","Kratek opis","Šifra - kratek opis","Dolg opis ","PIZ","ZZ","ZPB","ZSTV","KZZ","Potrdilo MedZZ"]
["001","Delovno razmerje v RS v podjetju, zavodu, pri drugih organiz.,delodajalcih, ...",{"$f":" A19 & \" - \" & B19","v":"001 - Delovno razmerje v RS v podjetju, zavodu, pri drugih organiz.,delodajalcih, ..."},"Osebe, ki so v delovnem razmerju v RS pri podjetju, zavodu, drugi organizaciji ali delodajalcu; pri podružnicah tujih poslovnih subjektov; izvoljeni ali imenovani nosilci javne ali druge funkcije","x","x","x","x","DA"]
["002","Detaširani delavci v delov.razmer. v RS - poslani na delo, strok.izpop. v tujino",{"$f":" A20 & \" - \" & B20","v":"002 - Detaširani delavci v delov.razmer. v RS - poslani na delo, strok.izpop. v tujino"},"Detaširani delavci - osebe v delovnem razmerju pri delodajalcu s sedežem v RS, poslani na delo ali na strokovno izpopolnjevanje v tujino, če niso obvezno zavarovani v državi, v katero so bili poslani ","x","x","x","x","DA"]
["003","Državljani RS zaposleni pri tujem delodajalcu, ki so/niso zav.pri tujem nos.zav.","003 - Državljani RS zaposleni pri tujem delodajalcu, ki so/niso zav.pri tujem nos.zav.","Državljani RS, zaposleni pri tujem delodajalcu, ki so oziroma niso zavarovani pri tujem nosilcu zavarovanja","x"]
["005","Samostojni podjetniki posamezniki - na območju RS oprav. pridob./gospod. dejav.","005 - Samostojni podjetniki posamezniki - na območju RS oprav. pridob./gospod. dejav.","Samostojni podjetniki posamezniki, ki na območju RS samostojno opravljajo pridobitno ali gospodarsko dejavnost","x","x","x","x","DA"]
["007","Prostovoljna vključitev v obvezno pokojninsko in invalidsko zavarovanje","007 - Prostovoljna vključitev v obvezno pokojninsko in invalidsko zavarovanje","Prostovoljna vključitev v obvezno pokojninsko in invalidsko zavarovanje","x"]
["008","Zaposleni pri mednarod. organiz.,ustanov.,konzul.,diplomat. predst. s sedež.v RS","008 - Zaposleni pri mednarod. organiz.,ustanov.,konzul.,diplomat. predst. s sedež.v RS","Osebe, zaposlene pri tujih in mednarodnih organizacijah in ustanovah, tujih konzularnih in diplomatskih predstavništvih s sedežem v RS, če ni z mednarodno pogodbo drugače določeno","x","x","x","x","DA"]
["011","Brezposelne osebe - prejemniki denarne pomoči pri zavodu za zaposlovanje","011 - Brezposelne osebe - prejemniki denarne pomoči pri zavodu za zaposlovanje","Brezposelne osebe - prejemniki denarne pomoči pri zavodu za zaposlovanje",null,"x",null,"x","DA"]
["012","Prejemniki bolniških nadomestil po prenehanju delovnega razmerja","012 - Prejemniki bolniških nadomestil po prenehanju delovnega razmerja","Prejemniki bolniških nadomestil po prenehanju delovnega razmerja","x","x","x","x","DA"]
["013","Delovno razmerje v RS pri samostojnih podjetnikih posameznikih","013 - Delovno razmerje v RS pri samostojnih podjetnikih posameznikih","Osebe, ki so v delovnem razmerju v RS pri osebah, ki samostojno opravljajo pridobitno ali gospodarsko dejavnost","x","x","x","x","DA"]
["016","Delovno razmerje v RS pri fizičnih osebah, ki uporab. dopolnil. delo drugih oseb","016 - Delovno razmerje v RS pri fizičnih osebah, ki uporab. dopolnil. delo drugih oseb","Zaposleni pri fizičnih osebah - osebe, ki so v delovnem razmerju v RS pri fizičnih osebah, ki so državljani RS ali tujci s stalnim ali z začasnim prebivališčem v RS in uporabljajo dopolnilno delo drugih oseb","x","x","x","x","DA"]
["019","Samostojni poklici - osebe na območju RS samostojno opravljajo poklicno dejav.","019 - Samostojni poklici - osebe na območju RS samostojno opravljajo poklicno dejav.","Samostojni poklici - osebe, ki na območju RS samostojno opravljajo poklicno dejavnost","x","x","x","x","DA"]
["020","Zaposleni pri mednarodnih organiz., ustanovah, diplomat.predstav. s sedežem v RS","020 - Zaposleni pri mednarodnih organiz., ustanovah, diplomat.predstav. s sedežem v RS","Osebe, zaposlene pri tujih in mednarodnih organizacijah, ustanovah in tujih diplomatskih predstavništvih s sedežem v RS, če ni z mednarodno pogodbo drugače določeno",null,"x",null,null,"DA"]
["021","Osebe s stal.prebiv.RS zaposlene pri tujem delodajalcu,niso zav. pri tuj.nos.zav","021 - Osebe s stal.prebiv.RS zaposlene pri tujem delodajalcu,niso zav. pri tuj.nos.zav","Osebe s stalnim prebivališčem v RS, zaposlene pri tujem delodajalcu, ki niso zavarovane pri tujem nosilcu zavarovanja",null,"x",null,null,"DA"]
["022","Vlagatelj zahteve za pridobitev pokojnine v tujini - zakonodaja EU","022 - Vlagatelj zahteve za pridobitev pokojnine v tujini - zakonodaja EU","Vlagatelj zahteve za pridobitev pokojnine v tujini - zakonodaja EU",null,"x",null,null,"DA"]
["023","Zavarovanec TNZ / napot.na zdrav.,dovolj.za zdrav.v RS - zakonod.EU, meddrž.pog.","023 - Zavarovanec TNZ / napot.na zdrav.,dovolj.za zdrav.v RS - zakonod.EU, meddrž.pog.","Zavarovanec tujega nosilca zavarovanja - napotitev na zdravljenje, dovoljenje za zdravljenje v RS – zakonodaja EU, meddržavna pogodba",null,"x",null,null,null,"DA"]
["027","Vrhunski športniki in vrhunski šahisti - člani telesnokulturnih organizacij v RS","027 - Vrhunski športniki in vrhunski šahisti - člani telesnokulturnih organizacij v RS","Vrhunski športniki in vrhunski šahisti - člani telesnokulturnih organizacij v RS, ki niso zavarovani iz drugega naslova","x","x",null,null,"DA"]
["028","Brezposelne osebe - prejemniki denarnega nadomestila pri zavodu za zaposlovanje","028 - Brezposelne osebe - prejemniki denarnega nadomestila pri zavodu za zaposlovanje","Brezposelne osebe - prejemniki denarnega nadomestila pri zavodu za zaposlovanje","x","x","x","x","DA"]
["029","Delovno razmerje v RS pri osebah, ki opravljajo samostojno poklicno dejavnost","029 - Delovno razmerje v RS pri osebah, ki opravljajo samostojno poklicno dejavnost","Osebe, ki so v delovnem razmerju na območju RS pri osebah, ki opravljajo poklicno dejavnost kot edini in glavni poklic ","x","x","x","x","DA"]
["030","Zavarovanec TNZ med začasnim bivanjem v RS - zakonodaja EU, meddržavna pogodba","030 - Zavarovanec TNZ med začasnim bivanjem v RS - zakonodaja EU, meddržavna pogodba","Zavarovanec tujega nosilca zavarovanja med začasnim bivanjem v RS – zakonodaja EU, meddržavna pogodba",null,"x",null,null,null,"DA"]
["031","Uživalci začasnih invalidskih nadomestil","031 - Uživalci začasnih invalidskih nadomestil","Uživalci začasnih invalidskih nadomestil",null,"x",null,null,"DA"]
["032","Osebe s statusom begunca ali subsidiarne zaščite - predpisi o mednarodni zaščiti","032 - Osebe s statusom begunca ali subsidiarne zaščite - predpisi o mednarodni zaščiti","Osebe, ki jim je RS priznala status begunca ali subsidiarno zaščito v skladu s predpisi o mednarodni zaščiti",null,"x",null,null,"DA"]
["033","Otroci do 18.leta, ki se šolajo in niso zavarovani kot družinski člani","033 - Otroci do 18.leta, ki se šolajo in niso zavarovani kot družinski člani","Otroci do 18. leta starosti, ki se šolajo in niso zavarovani kot družinski člani, ",null,"x",null,null,"DA"]
["034","Udeleženci javnih del","034 - Udeleženci javnih del","Udeleženci javnih del","x","x","x","x","DA"]
["035","Osebe na obveznem psihiatričnem zdravlj. in varstvu v zdravstvenem zavodu","035 - Osebe na obveznem psihiatričnem zdravlj. in varstvu v zdravstvenem zavodu","Osebe, ki jim je izrečen varnostni ukrep obveznega psihiatričnega zdravljenja in varstva v zdravstvenem zavodu",null,"x",null,null,"DA"]
["036","Osebe, ki opravljajo dopolnilno delo po 147. čl. Zakona o delovnih razmerjih","036 - Osebe, ki opravljajo dopolnilno delo po 147. čl. Zakona o delovnih razmerjih","Osebe, ki opravljajo dopolnilno delo po 147. členu Zakona o delovnih razmerjih","x","x","x","x","DA"]
["040","Družbeniki zasebnih družb in zavodov v RS, ki so poslovodne osebe","040 - Družbeniki zasebnih družb in zavodov v RS, ki so poslovodne osebe","Družbeniki zasebnih družb in zavodov v RS, ki so poslovodne osebe","x","x",null,"x","DA"]
["042","Osebe s stal.prebiv.RS zavarovane pri tujem nosilcu zdrav. zavarovanja","042 - Osebe s stal.prebiv.RS zavarovane pri tujem nosilcu zdrav. zavarovanja","Osebe s stalnim prebivališčem v RS, zavarovane pri tujem nosilcu zdrav. zavarovanja, ki med bivanjem v RS ne morejo uporabljati pravic iz tega naslova",null,"x",null,null,"DA"]
["043","Tujci, ki se izobražujejo ali izpopolnjujejo v RS","043 - Tujci, ki se izobražujejo ali izpopolnjujejo v RS","Tujci, ki se izobražujejo ali izpopolnjujejo v RS",null,"x",null,null,"DA"]
["044","Osebe s stal.prebiv.RS - prejemajo nadomestilo po zak.o družb.var.duš.,tel.priz.","044 - Osebe s stal.prebiv.RS - prejemajo nadomestilo po zak.o družb.var.duš.,tel.priz.","Osebe s stalnim prebivališčem v RS, ki prejemajo nadomestilo po Zakonu o družbenem varstvu duševno in telesno prizadetih oseb",null,"x",null,null,"DA"]
["045","Osebe s stal.prebiv.RS - prejemajo trajno denarno social.pomoč kot edini vir","045 - Osebe s stal.prebiv.RS - prejemajo trajno denarno social.pomoč kot edini vir","Osebe s stalnim prebivališčem v RS, ki po predpisih o socialnem varstvu prejemajo trajno denarno socialno pomoč kot edini vir preživljanja po ZSV-ju",null,"x",null,null,"DA"]
["046","Osebe s stal.prebiv.RS - uživalci priznavalnin po predpis. o varstvu udelež.vojn","046 - Osebe s stal.prebiv.RS - uživalci priznavalnin po predpis. o varstvu udelež.vojn","Osebe s stalnim prebivališčem v RS, ki so uživalci priznavalnin po predpisih o varstvu udeležencev vojn",null,"x",null,null,"DA"]
["047","Vojaki naborniki na prostovoljnem služenju vojaškega roka","047 - Vojaki naborniki na prostovoljnem služenju vojaškega roka","Vojaki na prostovoljnem služenju vojaškega roka ","x","x",null,null,"DA"]
["048","Osebe s stal.prebiv.RS - same plačujejo prispevek za zdravstveno zavarovanje","048 - Osebe s stal.prebiv.RS - same plačujejo prispevek za zdravstveno zavarovanje","Osebe s stalnim prebivališčem v RS, ki ne izpolnjujejo pogojev za zavarovanje po drugih podlagah in si same plačujejo prispevek za zdravstveno zavarovanje",null,"x",null,null,"DA"]
["049",null,"049 - ","Učenci v učnem razmerju - vajenci","x"]
["050","Osebe zavarovane za primer poškodbe pri delu in poklicne bolezni","050 - Osebe zavarovane za primer poškodbe pri delu in poklicne bolezni","Osebe, zavarovane za primer poškodbe pri delu in poklicne bolezni",null,"x"]
["051","Nosilci kmečkega gospodarstva (pokojninsko-invalidsko in zdravstveno zavarovani)","051 - Nosilci kmečkega gospodarstva (pokojninsko-invalidsko in zdravstveno zavarovani)","Kmetje (nosilci kmečkega gospodarstva), ki so pokojninsko, invalidsko in zdravstveno zavarovani in v RS opravljajo kmetijsko dejavnost kot edini ali glavni poklic","x","x",null,"x","DA"]
["052","Člani kmečkega gospodarstva (pokojninsko-invalidsko in zdravstveno zavarovani)","052 - Člani kmečkega gospodarstva (pokojninsko-invalidsko in zdravstveno zavarovani)","Člani kmečkega gospodarstva, ki so pokojninsko-invalidsko in zdravstveno zavarovani in v RS opravljajo kmetijsko dejavnost kot edini ali glavni poklic ","x","x",null,"x","DA"]
["053","Nosilci kmečkega gospodarstva (samo zdravstveno zavarovani)","053 - Nosilci kmečkega gospodarstva (samo zdravstveno zavarovani)","Kmetje, ki so samo zdravstveno zavarovani in v RS opravljajo kmetijsko dejavnost kot edini ali glavni poklic",null,"x",null,null,"DA"]
["054","Člani kmečkega gospodarstva (samo zdravstveno zavarovani)","054 - Člani kmečkega gospodarstva (samo zdravstveno zavarovani)","Člani kmečkega gospodarstva, ki so samo zdravstveno zavarovani in v RS opravljajo kmetijsko dejavnost kot edini ali glavni poklic",null,"x",null,null,"DA"]
["056","Obsojenci na prestajanju kazni zapora, mladoletniškega zapora, ...","056 - Obsojenci na prestajanju kazni zapora, mladoletniškega zapora, ...","Obsojenci na prestajanju kazni zapora oziroma mladoletniškega zapora in osebe, ki jim je ob izrečeni kazni, ki jo prestajajo, izrečen tudi varnostni ukrep obveznega zdravljenja odvisnosti od alkohola in drog",null,"x",null,null,"DA"]
["057","Priporniki","057 - Priporniki","Priporniki, ki niso zavarovanci iz drugega naslova do trenutka pripora oziroma jim zavarovanje preneha v času pripora",null,"x",null,null,"DA"]
["058","Mladoletniki na prestajanju vzgojnega ukrepa oddaje v prevzgojni dom","058 - Mladoletniki na prestajanju vzgojnega ukrepa oddaje v prevzgojni dom","Mladoletniki na prestajanju vzgojnega ukrepa oddaje v prevzgojni dom",null,"x",null,null,"DA"]
["059","Prejemnik tuje pokojnine - meddržavna pogodba","059 - Prejemnik tuje pokojnine - meddržavna pogodba","Prejemnik tuje pokojnine - meddržavna pogodba",null,"x",null,null,"DA"]
["060","Prejemniki pokojnine po predpisih RS (starostna,inval,vojaška,kmečka,državna...)","060 - Prejemniki pokojnine po predpisih RS (starostna,inval,vojaška,kmečka,državna...)","Osebe s stalnim prebivališčem v RS, ki prejemajo pokojnino po predpisih RS oziroma preživnino po predpisih o preživninskem varstvu kmetov; starostni, invalidski, vojaški, kmečki upokojenci, prejemniki državne in vdovske pokojnine",null,"x",null,null,"DA"]
["062","Prejemniki pokojnine tujega nosilca pokojninskega zavarovanja","062 - Prejemniki pokojnine tujega nosilca pokojninskega zavarovanja","Osebe s stalnim prebivališčem v RS, ki prejemajo pokojnino od tujega nosilca pokojninskega zavarovanja, če z mednarodno pogodbo ni drugače določeno",null,"x",null,null,"DA"]
["063","Prejemniki družinske pokojnine po predpisih RS","063 - Prejemniki družinske pokojnine po predpisih RS","Osebe s stalnim prebivališčem v RS, ki prejemajo družinsko pokojnino po predpisih RS",null,"x",null,null,"DA"]
["064","Kmetje ter člani kmečkega gospodarstva (vse pravice OZZ)","064 - Kmetje ter člani kmečkega gospodarstva (vse pravice OZZ)","Kmetje ter člani njihovega gospodarstva in druge osebe, ki v RS opravljajo kmetijsko dejavnost kot edini ali glavni poklic - za vse pravice",null,"x",null,"x","DA"]
["065","Kmetje ter člani kmečkega gospodarstva (samo pravica do zdrav.stor. in pot.str.)","065 - Kmetje ter člani kmečkega gospodarstva (samo pravica do zdrav.stor. in pot.str.)","Kmetje ter člani njihovega gospodarstva in druge osebe, ki v RS opravljajo kmetijsko dejavnost kot edini ali glavni poklic - za pravico do zdravstvenih storitev ter povračilo potnih stroškov",null,"x",null,"x","DA"]
["069","Prejemnik pokojnine po predpisih RS, ki prebiva v tujini - meddržavna pogodba","069 - Prejemnik pokojnine po predpisih RS, ki prebiva v tujini - meddržavna pogodba","Prejemniki pokojnine po predpisih RS, ki prebiva v tujini - meddržavna pogodba",null,"x",null,null,null,"DA"]
["070","Prejemnik pokojnine RS - uživalec delne pokojnine (delov.razm. za polov.del.čas)","070 - Prejemnik pokojnine RS - uživalec delne pokojnine (delov.razm. za polov.del.čas)","Upokojenci - uživalci delne pokojnine",null,"x",null,null,"DA"]
["071","Prejemniki starševskih nadomestil, ki nimajo pravice do starševskega dopusta","071 - Prejemniki starševskih nadomestil, ki nimajo pravice do starševskega dopusta","Prejemniki starševskih nadomestil, ki nimajo pravice do starševskega dopusta ","x","x","x","x","DA"]
["072","Upravičenci do sorazmer. dela plačila prisp. za socialno var. zaradi starševstva","072 - Upravičenci do sorazmer. dela plačila prisp. za socialno var. zaradi starševstva","Upravičenci do sorazmernega dela plačila prispevkov za socialno varnost zaradi dela s krajšim delovnim časom zaradi starševstva","x","x","x","x","DA"]
["074","Prejemniki delnega plačila za izgubljeni dohodek","074 - Prejemniki delnega plačila za izgubljeni dohodek","Prejemniki delnega plačila za izgubljeni dohodek in upravičenci do plačila prispevkov za socialno varnost v primeru 4 ali več otrok","x","x","x","x","DA"]
["075","Družinski član - biva v tujini z nosilcem zavarovanja poslanim na delo v tujino","075 - Družinski član - biva v tujini z nosilcem zavarovanja poslanim na delo v tujino","Družinski člani, ki bivajo v tujini z nosilcem zavarovanja, ki je bil poslan na delo v tujino",null,"x",null,null,"DA"]
["076","Družinski član zavarovanca tujega nosilca zavar. - zakonodaja EU, medržavna pog.","076 - Družinski član zavarovanca tujega nosilca zavar. - zakonodaja EU, medržavna pog.","Družinski član zavarovanca tujega nosilca zavarovanja - zakonodaja EU, medržavna pogodba",null,"x",null,null,null,"DA"]
["077","Družinski član","077 - Družinski član","Družinski član",null,"x",null,null,"DA"]
["078","Družinski član osebe zavarovane pri tujem nosilcu zdrav. zavar. (stal.prebiv.RS)","078 - Družinski član osebe zavarovane pri tujem nosilcu zdrav. zavar. (stal.prebiv.RS)","Družinski člani - osebe, zavarovane pri tujem nosilcu zdravstvenega zavarovanja, ki imajo stalno prebivališče v RS in niso zavarovani kot družinski člani te osebe pri tujem nosilcu zdravstvenega zavarovanja",null,"x",null,null,"DA"]
["079","Družinski član, nosilec zavarov. je slovenski upok. s stal.prebiv. v drž.konven.","079 - Družinski član, nosilec zavarov. je slovenski upok. s stal.prebiv. v drž.konven.","Družinski član - nosilec zavarovanja je slovenski upokojenec s stalnim prebivališčem v državi, s katero je sklenjen sporazum",null,"x",null,null,"DA"]
["080","Družinski član zapos./samozapos. osebe zavar. pri tujem nos. zav. - meddrž.pog.","080 - Družinski član zapos./samozapos. osebe zavar. pri tujem nos. zav. - meddrž.pog.","Družinski član zaposlene ali samozaposlene osebe zavarovane pri tujem nosilcu zavarovanja - meddržavna pogodba",null,"x",null,null,"DA"]
["081","Družinski član upokojenca, zavarovanega pri tujem nos. zavar. - meddržavna pog.","081 - Družinski član upokojenca, zavarovanega pri tujem nos. zavar. - meddržavna pog.","Družinski član upokojenca zavarovanega pri tujem nosilcu zavarovanja - meddržavna pogodba",null,"x",null,null,"DA"]
["082","Družinski član brezposelne osebe zavar. pri tuj.nos.zav.- zakonod.EU,meddrž.pog.","082 - Družinski član brezposelne osebe zavar. pri tuj.nos.zav.- zakonod.EU,meddrž.pog.","Družinski član brezposelne osebe zavarovane pri tujem nosilcu zavarovanja - zakonodaja EU",null,"x",null,null,"DA"]
["084","Osebe na prekvalifikaciji oz. dokvalifikaciji med delovnim razmerjem","084 - Osebe na prekvalifikaciji oz. dokvalifikaciji med delovnim razmerjem","Osebe na prekvalifikaciji oziroma dokvalifikaciji med delovnim razmerjem","x","x","x",null,"DA"]
["085","Mati z otrokom, ki dela po posebnih predpisih","085 - Mati z otrokom, ki dela po posebnih predpisih","Mati z otrokom, ki dela s krajšim delovnim časom po posebnih predpisih","x","x","x","x","DA"]
["086","Invalidne osebe zunaj delov.razmerja na poklicni rehab., čakanju na ustrez.delo","086 - Invalidne osebe zunaj delov.razmerja na poklicni rehab., čakanju na ustrez.delo","Delovni invalidi zunaj delovnega razmerja na poklicni rehabilitaciji in čakanju na ustrezno delo","x","x",null,null,"DA"]
["090","Zaposlena,samozaposlena oseba - obmej.delav. zavar.pri tuj.nos.zav - zakonod. EU","090 - Zaposlena,samozaposlena oseba - obmej.delav. zavar.pri tuj.nos.zav - zakonod. EU","Zaposlena ali samozaposlena oseba - obmejni delavec, zavarovan pri tujem nosilcu zavarovanja - zakonodaja EU",null,"x",null,null,"DA"]
["091","Zaposlena, samozaposlena oseba zavarov. pri tuj.nos.zav.- zakonod.EU,meddrž.pog.",{"$f":" A84 & \" - \" & B84","v":"091 - Zaposlena, samozaposlena oseba zavarov. pri tuj.nos.zav.- zakonod.EU,meddrž.pog."},"Zaposlena ali samozaposlena oseba zavarovana pri tujem nosilcu zavarovanja - zakonodaja EU, meddržavna pogodba",null,"x",null,null,"DA"]
["092","Napotitev na delo - zapos.,samozapos. oseba zavar. pri tuj.nos.zav.- meddrž.pog.","092 - Napotitev na delo - zapos.,samozapos. oseba zavar. pri tuj.nos.zav.- meddrž.pog.","Napotitev na delo - zaposlena ali samozaposlena oseba zavarovana pri tujem nosilcu zavarovanja - meddržavna pogodba",null,"x",null,null,"DA"]
["093","Družinski pomočniki - upravičenci do del.plačila po predpisih o socialnem varst.","093 - Družinski pomočniki - upravičenci do del.plačila po predpisih o socialnem varst.","Družinski pomočniki, upravičenci do delnega plačila za izgubljeni dohodek po predpisih o socialnem varstvu ","x","x","x","x","DA"]
["094","Osebe, ki v drugem pravnem razmerju opravljajo delo za plačilo","094 - Osebe, ki v drugem pravnem razmerju opravljajo delo za plačilo","Osebe, ki v drugem pravnem razmerju opravljajo delo za plačilo ","x"]
["095","Brezposelni - zavod za zaposlov. plačuje prisp.za pok.inv.zav. do pogoja upokoj.","095 - Brezposelni - zavod za zaposlov. plačuje prisp.za pok.inv.zav. do pogoja upokoj.","Brezposelni, ki jim Zavod RS za zaposlovanje plačuje prispevek za pokojninsko-invalidsko zavarovanje do izpolnitve pogojev za priznanje pravice do pokojnine","x"]
["096","Prejemniki starševskega dodatka","096 - Prejemniki starševskega dodatka","Prejemniki starševskega dodatka","x"]
["097","Uživalci invalidnin po predpisih o vojaških invalidih in civilnih invalid. vojne","097 - Uživalci invalidnin po predpisih o vojaških invalidih in civilnih invalid. vojne","Osebe s stalnim prebivališčem v RS, ki so uživalci invalidnin po predpisih o vojaških invalidih in civilnih invalidih vojne, pravic po predpisih o varstvu udeležencev NOV in drugih vojn ter uživalci republiških priznavalnin, če niso zavarovani iz drugega naslova",null,"x",null,null,"DA"]
["098","Družinski član slov. nosilca zdr. zav., ki prebiva v tujini - meddržavna pog.","098 - Družinski član slov. nosilca zdr. zav., ki prebiva v tujini - meddržavna pog.","Družinski člani zavarovanca slovenskega nosilca zavarovanja, ki prebivajo v tujini - meddržavna pogodba",null,"x",null,null,null,"DA"]
["099","Osebe, ki jim je CSD priznal pravico do plačila prispevka za OZZ po ZUPJS","099 - Osebe, ki jim je CSD priznal pravico do plačila prispevka za OZZ po ZUPJS","Osebe, ki jim je center za socialno delo po Zakonu o uveljavljanju pravic iz javnih sredstev priznal pravico do plačila prispevka za obvezno zdravstveno zavarovanje",null,"x",null,null,"DA"]
["100","Zakonci/zunajzakon.partnerji uslužbencev MZZ in MORS napotenih na delo v tujino","100 - Zakonci/zunajzakon.partnerji uslužbencev MZZ in MORS napotenih na delo v tujino","Zakonci oziroma zunajzakonski partnerji uslužbencev MZZ in MORS, napotenih na delo v tujino",null,null,null,"x"]
[101,"Osebe na območju RS opravljajo pridobit/poklic. dejav. po nastanku inv. I.kateg.","101 - Osebe na območju RS opravljajo pridobit/poklic. dejav. po nastanku inv. I.kateg.","Osebe, ki na območju RS opravljajo pridobitno ali poklicno dejavnost po nastanku invalidnosti I. kategorije","x"]
[102,"Družbeniki zaseb.družb in zavodov - poslovodne osebe po nastanku inv. I.kateg.","102 - Družbeniki zaseb.družb in zavodov - poslovodne osebe po nastanku inv. I.kateg.","Družbeniki zasebnih družb in zavodov, ki so poslovodne osebe po nastanku invalidnosti I. kategorije","x"]
["103","Družbeniki družb in ustanovitelji zavodov, ki so poslovodne osebe","103 - Družbeniki družb in ustanovitelji zavodov, ki so poslovodne osebe","Družbeniki družb in ustanovitelji zavodov, ki so poslovodne osebe",null,"x",null,null,"DA"]
[104,"Osebe na območju RS opravljajo samostojno gospodar./poklic. dejavnost (zdr.zav.)","104 - Osebe na območju RS opravljajo samostojno gospodar./poklic. dejavnost (zdr.zav.)","Osebe, ki na območju RS opravljajo samostojno gospodarsko ali poklicno dejavnost in niso obvezno pokojninsko in invalidsko zavarovane",null,"x",null,null,"DA"]
[105,"Prejemnik tuje pokojnine iz države EU - zakonodaja EU","105 - Prejemnik tuje pokojnine iz države EU - zakonodaja EU","Prejemnik tuje pokojnine iz države članice EU - zakonodaja EU",null,"x",null,null,"DA"]
[106,"Druž. član upokojenca zavarov. pri tujem nosilcu zav.v državi EU - zakonodaja EU","106 - Druž. član upokojenca zavarov. pri tujem nosilcu zav.v državi EU - zakonodaja EU","Družinski član upokojenca, zavarovanega pri tujem nosilcu zavarovanja v državi članici EU - zakonodaja EU",null,"x",null,null,"DA"]
[107,"Druž. član zapos./samozapos.osebe pri tujem nos.zav. v državi EU - zakonodaja EU","107 - Druž. član zapos./samozapos.osebe pri tujem nos.zav. v državi EU - zakonodaja EU","Družinski član zaposlene ali samozaposlene osebe zavarovane pri tujem nosilcu zavarovanja v državi članici EU - zakonodaja EU",null,"x",null,null,"DA"]
[108,"Prejemnik pokojnine po predp. RS, prebiva v državi EU - zakonodaja EU","108 - Prejemnik pokojnine po predp. RS, prebiva v državi EU - zakonodaja EU","Prejemnik pokojnine po predpisih RS, ki prebiva v državi članici EU - zakonodaja EU",null,"x",null,null,"DA"]
[109,"Druž. član zavarovanca slov.nos.zdr.zav., ki prebiva v državi EU - zakonodaja EU","109 - Druž. član zavarovanca slov.nos.zdr.zav., ki prebiva v državi EU - zakonodaja EU","Družinski člani zavarovanca slovenskega nosilca zavarovanja, ki prebivajo v državi članici EU - zakonodaja EU",null,"x",null,null,"DA"]
[110,"Prejemniki starševskih nadomestil po prenehanju delovnega razmerja","110 - Prejemniki starševskih nadomestil po prenehanju delovnega razmerja","Prejemniki starševskih nadomestil po prenehanju delovnega razmerja","x","x","x","x","DA"]
[111,"Prostovoljna vključitev v obvezno zavarovanje za primer brezposelnosti","111 - Prostovoljna vključitev v obvezno zavarovanje za primer brezposelnosti","Prostovoljna vključitev v obvezno zavarovanje za primer brezposelnosti ",null,null,"x"]
[112,"Obv.zav. za brezposelnost za poslovod. osebe v osebni/enosebni družbi ter zavodu","112 - Obv.zav. za brezposelnost za poslovod. osebe v osebni/enosebni družbi ter zavodu","Obvezno zavarovanje za primer brezposelnosti za poslovodne osebe v osebni družbi in enoosebni družbi z omejeno odgovornostjo ter zavodu",null,null,"x"]
["113","Sočasna zaposlitev v drugi državi članici EU nad polnim delovnim časom","113 - Sočasna zaposlitev v drugi državi članici EU nad polnim delovnim časom","Sočasna zaposlitev v drugi državi članici EU nad polnim delovnim časom","x","x","x","x","DA"]
["114","Zaposlitev po pogodbi s tujim delodajalcem iz EU, zavarovanec opravlja delo v RS","114 - Zaposlitev po pogodbi s tujim delodajalcem iz EU, zavarovanec opravlja delo v RS","Zaposlitev po pogodbi s tujim delodajalcem iz države članice EU, ko zavarovanec opravlja delo v RS","x","x","x","x","DA"]
["115","Sočasna zaposlitev v drugi državi članici EU do polnega delovnega časa","115 - Sočasna zaposlitev v drugi državi članici EU do polnega delovnega časa","Sočasna zaposlitev v drugi državi članici EU do polnega delovnega časa","x","x","x","x","DA"]
[117,"Prejemniki poklicne pokojnine, če niso zdravstveno zavarovani po drugi podlagi","117 - Prejemniki poklicne pokojnine, če niso zdravstveno zavarovani po drugi podlagi","Prejemniki poklicne pokojnine, če niso obvezno zdravstveno zavarovani po drugi podlagi",null,"x",null,null,"DA"]
[118,"Rejniki, ki opravljajo rejniško dejavnost kot poklic","118 - Rejniki, ki opravljajo rejniško dejavnost kot poklic","Rejniki, ki opravljajo rejniško dejavnost kot poklic","x","x","x","x","DA"]
[119,"Samozaposlitev v drugi državi članici EU ","119 - Samozaposlitev v drugi državi članici EU ","Samozaposlitev v drugi državi članici EU ","x","x","x","x","DA"]
[120,"Družbeniki družb v drugi državi članici EU, ki so poslovodne osebe ","120 - Družbeniki družb v drugi državi članici EU, ki so poslovodne osebe ","Družbeniki družb v drugi državi članici EU, ki so poslovodne osebe ","x","x",null,"x","DA"]
[121,"Osebe s pravico do razlike med denarnim nadomestilom in plačo na javnih delih","121 - Osebe s pravico do razlike med denarnim nadomestilom in plačo na javnih delih","Osebe, ki imajo pravico do razlike med denarnim nadomestilom in plačo na javnih delih ","x","x","x","x","DA"]
[999,"Tuje osebe, ki uveljavljajo storitve z EU KZZ, certifikatom ali kartico Medicare","999 - Tuje osebe, ki uveljavljajo storitve z EU KZZ, certifikatom ali kartico Medicare","Tuje zavarovane osebe, ki uveljavljajo storitve z EU KZZ, certifikatom ali kartico Medicare",null,"x (omejeno)"]

{"sheet":"9_vrste listin","index":13,"n_rows":22,"n_cols":4,"rows_kept":22,"cut":false,"hidden":false,"merged":[]}
["šifra","naziv","šifra - naziv","VIR:"]
[1,"Napotnica",{"$f":" A2 & \" - \" & B2","v":"1 - Napotnica"},"ZZZS"]
[2,"Delovni nalog","2 - Delovni nalog","ZZZS"]
[3,"Nalog za prevoz","3 - Nalog za prevoz","ZZZS"]
[4,"Predlog zobnoprotetične rehabilitacije","4 - Predlog zobnoprotetične rehabilitacije","ZZZS"]
[5,"Ortodontsko zdravljenje","5 - Ortodontsko zdravljenje","ZZZS"]
[6,"Recept","6 - Recept","ZZZS"]
[7,"Naročilnica za medicinske pripomočke (NAR-1)","7 - Naročilnica za medicinske pripomočke (NAR-1)","ZZZS"]
[8,"Naročilnica za pripomočke za vid (NAR-2)","8 - Naročilnica za pripomočke za vid (NAR-2)","ZZZS"]
[9,"Mesečna zbirna naročilnica (NAR-3)","9 - Mesečna zbirna naročilnica (NAR-3)","ZZZS"]
[10,"Delovni nalog za fizioterapijo","10 - Delovni nalog za fizioterapijo","ZZZS"]
[50,"Napotni dokument za obravnavo v ZVC/CKZ","50 - Napotni dokument za obravnavo v ZVC/CKZ","NIJZ"]
[51," Potrdilo o upravičeni zadržanosti od dela ","51 -  Potrdilo o upravičeni zadržanosti od dela ","NIJZ"]
[52," Predlog za zdravniško komisijo","52 -  Predlog za zdravniško komisijo","NIJZ"]
[53," Predlog za invalidsko komisijo","53 -  Predlog za invalidsko komisijo","NIJZ"]
[54," Razna potrdila/mnenja (za zavarovalnice, opravičila…)","54 -  Razna potrdila/mnenja (za zavarovalnice, opravičila…)","NIJZ"]
[55," Obvestilo (izvajalec patronažnega varstva) o ugotovljenem stanju","55 -  Obvestilo (izvajalec patronažnega varstva) o ugotovljenem stanju","NIJZ"]
[56," Obvestilo (izvajalec patronažnega varstva) s strani drugih deležnikov","56 -  Obvestilo (izvajalec patronažnega varstva) s strani drugih deležnikov","NIJZ"]
[57,"Poročilo o obravnavi v ZVC/CKZ","57 - Poročilo o obravnavi v ZVC/CKZ","NIJZ"]
[58,"Obvestilo osebnem/ga zdravniku/ka","58 - Obvestilo osebnem/ga zdravniku/ka","NIJZ"]
[90,"Bela napotnica (ni listina OZZ)","90 - Bela napotnica (ni listina OZZ)","ZZZS"]
[99,"Ni listine","99 - Ni listine","NIJZ"]